bitfinex/quotes_SOLUSD_20260211
["timestamp","ask_amount","ask_price","bid_price","bid_amount"]
[1770781865041,0.51943355,83.709,83.68,11.95027459]
[1770781865255,0.51943355,83.709,83.682,11.95000119]
[1770781866137,0.51943355,83.707,83.677,11.95058353]
[1770781868851,0.51943355,83.705,83.677,11.95058353]
[1770781869060,0.51943355,83.699,83.671,12.25143823]
[1770781871744,0.51943355,83.689,83.659,0.45213906]
[1770781871949,0.51943355,83.689,83.661,11.95287864]
[1770781873361,0.51943355,83.689,83.659,0.4569128]
[1770781875058,0.51943355,83.687,83.652,0.46630393]
[1770781877260,0.51943355,83.679,83.652,0.46630393]
[1770781879966,0.51943355,83.679,83.65,48.12]
[1770781880297,0.56130066,83.669,83.631,0.49324246]
[1770781880648,0.56130066,83.669,83.636,0.49755206]
[1770781881872,0.56130066,83.669,83.627,48.18]
[1770781881873,0.56130066,83.669,83.63,0.50181044]
[1770781882047,0.56130066,83.658,83.63,0.50181044]
[1770781882246,0.56130066,83.658,83.632,0.50601138]
[1770781883654,0.56130066,83.658,83.627,48.68980055]
[1770781883860,0.56130066,83.658,83.627,48.18]
[1770781884072,0.56130066,83.658,83.623,0.51354688]
[1770781884073,0.57092506,83.649,83.621,11.95862189]
[1770781884273,3.29491529,83.66,83.628,0.51354688]
[1770781884470,0.57092506,83.658,83.628,0.51354688]
[1770781884981,0.57092506,83.658,83.622,12.47569569]
[1770781885359,0.57092506,83.658,83.623,0.52089165]
[1770781885553,0.57092506,83.658,83.622,11.95845644]
[1770781885554,0.57092506,83.658,83.629,0.52089165]
[1770781886667,0.57092506,83.658,83.631,0.52450137]
[1770781886866,12.52340243,83.665,83.631,0.52450137]
[1770781887184,0.57092506,83.664,83.631,0.52450137]
[1770781887389,0.57092506,83.659,83.631,0.52450137]
[1770781887571,0.57092506,83.659,83.621,0.52806972]
[1770781887887,0.57092506,83.659,83.626,0.52806972]
[1770781888263,0.57092506,83.659,83.62,3.29491529]
[1770781888264,0.57092506,83.649,83.62,12.48682406]
[1770781888464,0.57092506,83.649,83.621,0.53159718]
[1770781891489,0.57092506,83.649,83.62,11.95875434]
[1770781892386,0.57092506,83.647,83.621,0.54531786]
[1770781892969,0.57092506,83.647,83.614,0.54531786]
[1770781895086,0.57092506,83.645,83.616,0.55193348]
[1770781896090,0.57092506,83.645,83.621,0.55517796]
[1770781896801,0.57092506,83.645,83.615,12.51797894]
[1770781897096,0.57092506,83.645,83.618,0.55840231]
[1770781897293,0.57092506,83.652,83.621,0.56157761]
[1770781898894,0.57092506,83.649,83.623,0.56471728]
[1770781902806,0.57092506,83.649,83.624,11.95828948]
[1770781902996,0.57092506,83.649,83.624,12.52701099]
[1770781904121,0.57092506,83.649,83.618,12.52776601]
[1770781904288,11.95485845,83.648,83.621,11.95858767]
[1770781904488,0.57092506,83.647,83.621,11.95858767]
[1770781904685,0.57092506,83.647,83.625,11.95814648]
[1770781906782,0.57092506,83.647,83.621,0.56872151]
[1770781909502,0.57092506,83.647,83.623,0.56872151]
[1770781911012,0.6020135,83.653,83.624,11.95828948]
[1770781911302,0.6020135,83.653,83.625,0.60240654]
[1770781911487,0.6020135,83.663,83.625,0.60240654]
[1770781911686,0.6020135,83.659,83.625,0.60240654]
[1770781912104,0.6020135,83.649,83.619,11.95896265]
[1770781912303,0.6020135,83.649,83.625,0.60772581]
[1770781912604,0.6020135,83.649,83.624,11.95828948]
[1770781913183,0.6020135,83.649,83.622,0.60772581]
[1770781915208,0.6020135,83.649,83.615,0.6129172]
[1770781915506,0.6020135,83.648,83.615,0.6129172]
[1770781917012,0.6020135,83.639,83.615,0.6129172]
[1770781918791,0.6020135,83.638,83.611,0.3]
[1770781918999,0.6020135,83.629,83.611,0.3]
[1770781919286,0.6020135,83.629,83.61,0.2]
[1770781920189,0.6020135,83.629,83.59,3.29491529]
[1770781920190,0.6020135,83.619,83.581,0.63050142]
[1770781920389,0.6020135,83.609,83.582,11.96429853]
[1770781921000,0.6020135,83.609,83.583,0.63050142]
[1770781921511,0.6020135,83.609,83.58,0.2]
[1770781921691,0.6020135,83.599,83.58,0.2]
[1770781922011,0.6020135,83.599,83.582,11.96429853]
[1770781924018,0.6020135,83.599,83.58,0.2]
[1770781924197,0.6020135,83.589,83.58,0.2]
[1770781924719,0.6020135,83.589,83.57,0.2]
[1770781934202,0.6020135,83.608,83.572,0.63050142]
[1770781935411,0.6020135,83.599,83.572,0.63050142]
[1770781935723,3.90507472,83.59,83.572,0.63050142]
[1770781935902,0.6020135,83.59,83.572,0.63050142]
[1770781936316,0.6020135,83.599,83.574,0.63050142]
[1770781937238,3.90507472,83.61,83.574,0.63050142]
[1770781938323,0.6020135,83.609,83.576,0.63050142]
[1770781938539,0.6020135,83.608,83.576,0.63050142]
[1770781939431,0.6020135,83.599,83.571,0.63050142]
[1770781941031,0.65341739,83.589,83.57,0.2]
[1770781943325,0.65341739,83.589,83.57,0.86717345]
[1770781943510,11.96200866,83.598,83.571,0.66717345]
[1770781943511,0.65341739,83.595,83.571,0.66717345]
[1770781944718,3.30306122,83.6,83.571,0.66717345]
[1770781944719,0.69450703,83.593,83.571,0.66717345]
[1770781944919,11.96258104,83.594,83.57,0.2]
[1770781944920,0.69450703,83.589,83.57,0.2]
[1770781946230,0.69450703,83.589,83.571,0.65207383]
[1770781946432,0.69450703,83.589,83.57,0.2]
[1770781948437,0.69450703,83.587,83.57,0.2]
[1770781950435,0.69450703,83.585,83.57,0.2]
[1770781953146,0.69450703,83.579,83.56,0.2]
[1770781953816,0.69450703,83.579,83.56,0.85207383]
[1770781954316,0.69450703,83.579,83.561,0.65207383]
[1770781956923,3.30306122,83.57,83.561,0.65207383]
[1770781957127,0.69450703,83.578,83.561,0.65207383]
[1770781957324,3.30306122,83.58,83.561,0.65207383]
[1770781957526,3.99756825,83.58,83.561,0.65207383]
[1770781957832,0.69450703,83.579,83.561,0.65207383]
[1770781958137,11.96415066,83.584,83.561,0.65207383]
[1770781958344,0.69450703,83.583,83.561,0.65207383]
[1770781958537,3.30306122,83.58,83.561,0.65207383]
[1770781958745,0.69450703,83.579,83.561,0.65207383]
[1770781958948,0.69450703,83.579,83.56,0.2]
[1770781960742,3.30306122,83.58,83.54,0.2]
[1770781960743,0.69450703,83.569,83.54,0.2]
[1770781960942,0.69450703,83.549,83.54,0.2]
[1770781961543,0.69450703,83.549,83.523,0.65207383]
[1770781961747,0.69450703,83.539,83.52,12.17313214]
[1770781962661,0.69450703,83.539,83.52,0.2]
[1770781962840,0.69450703,83.529,83.512,0.65207383]
[1770781963148,0.69450703,83.535,83.514,0.65207383]
[1770781963346,0.69450703,83.539,83.518,0.65207383]
[1770781965384,76.38087886,83.554,83.5,3.50306122]
[1770781965385,0.69450703,83.569,83.521,0.65207383]
[1770781965555,29.91535106,83.57,83.521,0.65207383]
[1770781965556,0.69450703,83.559,83.521,0.65207383]
[1770781965746,3.30306122,83.54,83.521,0.65207383]
[1770781965937,3.99756825,83.53,83.508,0.65207383]
[1770781966449,3.99756825,83.53,83.507,48.56]
[1770781966450,0.69450703,83.536,83.514,0.65207383]
[1770781967861,3.99756825,83.54,83.518,0.65207383]
[1770781968043,0.69450703,83.54,83.518,0.65207383]
[1770781968250,3.99756825,83.54,83.518,0.65207383]
[1770781968649,0.69450703,83.539,83.518,0.65207383]
[1770781969354,0.69450703,83.539,83.511,0.65207383]
[1770781969543,0.69450703,83.539,83.515,0.65207383]
[1770781969946,3.30306122,83.54,83.517,0.65207383]
[1770781970158,0.69450703,83.545,83.517,0.65207383]
[1770781970458,3.30306122,83.55,83.517,0.65207383]
[1770781970459,0.7040038,83.539,83.517,0.65207383]
[1770781971045,3.30306122,83.53,83.51,0.68582952]
[1770781971357,0.7040038,83.529,83.51,0.68582952]
[1770781972453,12.67602221,83.529,83.51,0.68582952]
[1770781972758,0.7040038,83.529,83.51,0.68582952]
[1770781973139,0.7040038,83.527,83.501,0.68582952]
[1770781973338,11.97203333,83.528,83.5,0.2]
[1770781973339,0.7040038,83.519,83.5,0.2]
[1770781978862,11.97246793,83.525,83.501,0.68582952]
[1770781979163,0.7040038,83.525,83.501,0.68582952]
[1770781980168,0.7040038,83.519,83.501,0.68582952]
[1770781980370,12.67446071,83.539,83.503,0.68582952]
[1770781980567,0.7040038,83.538,83.503,0.68582952]
[1770781980766,0.7040038,83.538,83.511,0.68582952]
[1770781981060,11.9707435,83.537,83.511,0.68582952]
[1770781981264,0.7040038,83.536,83.511,0.68582952]
[1770781981644,0.7040038,83.536,83.513,0.68582952]
[1770781982553,0.7040038,83.545,83.513,0.68582952]
[1770781982958,29.91879255,83.56,83.512,11.97432704]
[1770781982959,0.7040038,83.57,83.521,0.68582952]
[1770781983185,3.30732227,83.58,83.526,0.68582952]
[1770781983186,3.30732227,83.55,83.526,0.68582952]
[1770781983353,0.7040038,83.549,83.526,0.68582952]
[1770781984445,0.7040038,83.549,83.527,11.97217666]
[1770781984650,0.7040038,83.549,83.527,12.65800618]
[1770781985271,0.7040038,83.549,83.527,0.68582952]
[1770781986071,0.7040038,83.549,83.522,0.68582952]
[1770781986464,0.7040038,83.549,83.525,11.97236703]
[1770781987056,0.7040038,83.549,83.526,0.68582952]
[1770781987459,46.42,83.573,83.541,0.68582952]
[1770781987460,0.7040038,83.572,83.541,0.68582952]
[1770781987769,0.7040038,83.572,83.54,3.30732227]
[1770781987770,0.7040038,83.578,83.551,0.68582952]
[1770781987955,3.30732227,83.57,83.551,0.68582952]
[1770781988274,0.7040038,83.569,83.536,0.68582952]
[1770781988472,0.7040038,83.559,83.529,0.68582952]
[1770781988670,0.7040038,83.559,83.525,41.90352536]
[1770781988671,3.30732227,83.56,83.531,0.68582952]
[1770781989374,0.7040038,83.565,83.531,0.68582952]
[1770781989679,0.7040038,83.559,83.531,0.68582952]
[1770781990564,3.30732227,83.57,83.531,0.68582952]
[1770781990565,0.7040038,83.568,83.531,0.68582952]
[1770781990880,0.7040038,83.567,83.533,0.68582952]
[1770781991254,0.7040038,83.549,83.512,29.93556978]
[1770781991474,0.7040038,83.539,83.512,11.97426227]
[1770781992151,0.7040038,83.539,83.516,11.9736651]
[1770781992855,0.7040038,83.539,83.511,12.66029994]
[1770781993075,0.7040038,83.539,83.512,0.68582952]
[1770781995459,0.7040038,83.537,83.506,12.66100621]
[1770781995659,0.7040038,83.529,83.507,0.68582952]
[1770781997457,0.7040038,83.539,83.509,0.68582952]
[1770781997672,0.7040038,83.538,83.509,0.68582952]
[1770782001366,0.7080089,83.529,83.503,11.97552259]
[1770782001886,0.7080089,83.529,83.504,0.73130058]
[1770782002273,0.7080089,83.529,83.507,11.97503055]
[1770782002669,0.7080089,83.529,83.504,0.73130058]
[1770782003282,0.7080089,83.529,83.506,12.70637021]
[1770782003489,0.7080089,83.529,83.507,0.73130058]
[1770782003885,0.7080089,83.529,83.509,0.73130058]
[1770782005499,58.22908652,83.549,83.511,0.70797381]
[1770782005684,0.67169072,83.548,83.511,0.70797381]
[1770782005883,0.67169072,83.539,83.513,0.70797381]
[1770782007307,0.67169072,83.539,83.515,0.70797381]
[1770782009502,0.67169072,83.539,83.516,11.97375353]
[1770782009916,0.67169072,83.529,83.5,1e-08]
[1770782010194,0.67169072,83.509,83.492,0.2569558]
[1770782010380,47.03169072,83.509,83.492,0.2569558]
[1770782010582,0.67169072,83.508,83.492,0.2569558]
[1770782011883,0.67169072,83.506,83.492,0.2569558]
[1770782012096,0.67169072,83.499,83.479,0.70797381]
[1770782012592,0.67169072,83.499,83.473,12.68782169]
[1770782014404,0.67169072,83.499,83.478,0.70797381]
[1770782014987,0.67169072,83.499,83.461,41.93575442]
[1770782014988,0.67169072,83.499,83.48,0.80797381]
[1770782018107,0.67169072,83.499,83.48,0.1]
[1770782019207,0.67169072,83.499,83.48,0.80797381]
[1770782020308,46.42,83.507,83.48,0.80797381]
[1770782020509,0.67169072,83.506,83.48,0.80797381]
[1770782020907,11.97359229,83.518,83.483,0.70797381]
[1770782021695,11.97215691,83.528,83.491,0.70797381]
[1770782022008,0.67169072,83.532,83.501,0.70797381]
[1770782023013,0.67169072,83.532,83.503,0.70797381]
[1770782026621,0.67169072,83.532,83.505,0.70797381]
[1770782026928,0.7493051,83.569,83.504,41.91415979]
[1770782027090,0.7493051,83.569,83.53,3.30732227]
[1770782027817,0.7493051,83.569,83.531,11.97160335]
[1770782027818,11.96624548,83.569,83.531,11.97160335]
[1770782028124,0.7493051,83.568,83.531,11.97160335]
[1770782031322,0.7493051,83.566,83.531,11.97160335]
[1770782031520,0.7493051,83.559,83.53,3.30732227]
[1770782032601,0.7493051,83.557,83.529,11.97184352]
[1770782032998,3.30732227,83.55,83.52,3.30732227]
[1770782033193,0.7493051,83.549,83.52,3.30732227]
[1770782035215,0.7493051,83.548,83.521,11.97303672]
[1770782039518,0.7493051,83.546,83.511,0.02169944]
[1770782039722,11.96931068,83.547,83.501,11.97590448]
[1770782039723,0.7493051,83.539,83.501,11.99760392]
[1770782040023,0.7493051,83.529,83.501,11.97590448]
[1770782040825,0.7493051,83.519,83.489,0.02311996]
[1770782041829,0.7493051,83.519,83.481,48.28]
[1770782041830,0.7493051,83.519,83.49,3.33186054]
[1770782042725,0.7493051,83.519,83.491,0.02591794]
[1770782043025,0.7493051,83.529,83.5,3.30732227]
[1770782043326,46.32,83.545,83.482,41.92520542]
[1770782043327,0.7493051,83.539,83.511,0.02591794]
[1770782044427,0.7493051,83.539,83.509,11.97465027]
[1770782044730,0.7493051,83.529,83.509,11.97465027]
[1770782045226,0.7493051,83.529,83.5,3.30869361]
[1770782045521,0.7493051,83.529,83.499,11.9760555]
[1770782047230,0.7493051,83.528,83.493,0.0286485]
[1770782047741,0.7493051,83.528,83.501,0.03263209]
[1770782048229,0.7493051,83.528,83.51,3.30869361]
[1770782048632,0.7493051,83.528,83.506,0.03263209]
[1770782050637,0.7493051,83.528,83.501,0.03648418]
[1770782053133,0.7493051,83.528,83.502,0.0389566]
[1770782055334,0.7493051,83.528,83.501,11.97590448]
[1770782056216,0.7493051,83.528,83.501,0.04258761]
[1770782058835,0.7493051,83.528,83.501,12.01849209]
[1770782059035,0.7493051,83.528,83.502,0.0460889]
[1770782067739,0.7493051,83.528,83.502,0.05794023]
[1770782067951,0.7493051,83.528,83.49,3.30869361]
[1770782067952,0.7493051,83.509,83.483,11.97838408]
[1770782068346,0.7493051,83.509,83.478,11.97919262]
[1770782068637,0.7493051,83.509,83.473,0.05794023]
[1770782068846,0.7493051,83.499,83.473,11.97983313]
[1770782069735,0.7493051,83.499,83.47,3.30869361]
[1770782069923,0.7493051,83.499,83.467,0.05894604]
[1770782070125,0.7493051,83.499,83.471,0.15994148]
[1770782071334,0.7493051,83.499,83.471,12.14015017]
[1770782072956,0.7493051,83.499,83.471,11.98020869]
[1770782074256,0.7493051,83.499,83.454,48.22]
[1770782074257,0.72260618,83.497,83.464,11.98114011]
[1770782074469,0.72260618,83.495,83.464,11.98114011]
[1770782075470,0.72260618,83.495,83.471,0.16612146]
[1770782075755,0.72260618,83.495,83.465,0.16612146]
[1770782076063,0.72260618,83.495,83.471,0.16612146]
[1770782079361,0.72260618,83.495,83.471,12.14633015]
[1770782079966,0.72260618,83.495,83.472,0.17000452]
[1770782080147,0.72260618,83.509,83.472,0.17000452]
[1770782080649,0.72260618,83.509,83.48,3.30869361]
[1770782080966,0.72260618,83.515,83.491,0.17094409]
[1770782082569,3.30869361,83.52,83.472,0.3]
[1770782082570,0.72260618,83.513,83.472,0.3]
[1770782082752,0.72260618,83.499,83.469,0.17279007]
[1770782082951,0.72260618,83.499,83.47,3.30869361]
[1770782083350,0.72260618,83.499,83.476,11.97948612]
[1770782084369,0.72260618,83.499,83.471,11.98020869]
[1770782086156,0.72260618,83.489,83.461,11.98153994]
[1770782086467,0.72260618,83.489,83.456,0.17639984]
[1770782086861,0.72260618,83.489,83.455,11.98250554]
[1770782086862,0.72260618,83.489,83.461,0.17639984]
[1770782088368,0.72260618,83.488,83.462,0.17814801]
[1770782088669,0.72260618,83.488,83.461,11.98164412]
[1770782089054,11.97776926,83.488,83.46,11.98175846]
[1770782089251,0.72260618,83.487,83.453,0.17814801]
[1770782090247,0.77943014,83.485,83.457,11.98213558]
[1770782092675,0.77943014,83.483,83.457,11.98219908]
[1770782093460,0.77943014,83.49,83.461,0.18313188]
[1770782094360,0.77943014,83.501,83.471,0.18392461]
[1770782094547,0.77943014,83.501,83.473,0.18392461]
[1770782094951,0.77943014,83.499,83.473,0.18392461]
[1770782095756,0.77943014,83.499,83.468,11.98061555]
[1770782095956,0.77943014,83.499,83.469,0.18471461]
[1770782096559,0.77943014,83.497,83.471,11.98006788]
[1770782101182,46.16,83.501,83.46,3.31110442]
[1770782101183,0.77943014,83.527,83.491,0.18851043]
[1770782101365,0.77943014,83.527,83.5,3.50035009]
[1770782101568,0.77943014,83.527,83.491,0.18924567]
[1770782101772,0.77943014,83.519,83.483,0.18924567]
[1770782101982,0.77943014,83.519,83.49,3.31110442]
[1770782102172,0.77943014,83.519,83.491,0.18924567]
[1770782104387,0.77943014,83.519,83.492,11.97719541]
[1770782105177,0.77943014,83.519,83.492,12.1685831]
[1770782105504,11.97346679,83.518,83.481,0.19209118]
[1770782105693,0.77943014,83.509,83.477,0.19209118]
[1770782106786,0.77943014,83.509,83.48,3.31110442]
[1770782107095,0.77943014,83.509,83.48,3.31002194]
[1770782108392,0.77943014,83.509,83.481,0.19349661]
[1770782110290,0.77943014,83.509,83.483,0.19484381]
[1770782111389,0.77943014,83.509,83.484,11.97834315]
[1770782117397,0.77943014,83.509,83.484,12.17828674]
[1770782117591,0.77943014,83.509,83.485,0.19994359]
[1770782120509,0.77943014,83.509,83.48,15.28891464]
[1770782121484,0.77943014,83.509,83.481,0.20289437]
[1770782122496,0.77943014,83.509,83.482,11.97863012]
[1770782123501,0.77943014,83.509,83.484,11.97834315]
[1770782126192,0.75381885,83.523,83.5,3.31002194]
[1770782126510,0.75381885,83.53,83.51,3.31002194]
[1770782126712,0.75381885,83.53,83.501,0.20621539]
[1770782126885,0.75381885,83.53,83.5,3.31002194]
[1770782126886,4.06384079,83.53,83.496,0.20621539]
[1770782127091,0.75381885,83.529,83.49,3.31002194]
[1770782127495,0.75381885,83.529,83.484,11.97834315]
[1770782127705,0.75381885,83.519,83.484,11.97834315]
[1770782128086,0.75381885,83.518,83.484,11.97834315]
[1770782128307,0.75381885,83.518,83.484,12.18508614]
[1770782128706,0.75381885,83.518,83.485,0.20726494]
[1770782129011,0.75381885,83.518,83.491,0.20726494]
[1770782131012,0.51381885,83.518,83.492,11.97719541]
[1770782132214,11.97361016,83.517,83.488,0.44897838]
[1770782132508,11.97361016,83.517,83.486,11.97801458]
[1770782132993,0.75381885,83.516,83.486,11.97801458]
[1770782137696,0.75381885,83.516,83.485,0.4528907]
[1770782138034,0.75381885,83.528,83.491,0.4528907]
[1770782138194,0.75381885,83.528,83.501,0.4528907]
[1770782139112,0.75381885,83.527,83.491,0.45352208]
[1770782139296,0.75381885,83.519,83.487,0.3]
[1770782139913,0.75381885,83.519,83.488,11.97776926]
[1770782140207,0.75381885,83.517,83.488,11.97776926]
[1770782142504,0.75381885,83.515,83.488,11.97776926]
[1770782144705,0.75381885,83.515,83.488,0.45717888]
[1770782147712,0.75381885,83.515,83.49,0.45891344]
[1770782148996,0.75381885,83.515,83.491,11.97733887]
[1770782149195,0.75381885,83.515,83.491,12.43682838]
[1770782149417,0.75381885,83.515,83.492,0.46004732]
[1770782151118,0.75381885,83.515,83.493,11.97705196]
[1770782151316,0.75381885,83.515,83.493,12.43821964]
[1770782155099,0.75381885,83.515,83.494,0.46332045]
[1770782159124,0.75381885,83.515,83.49,11.97748233]
[1770782159316,0.79187662,83.516,83.488,0.46584434]
[1770782159522,0.79187662,83.516,83.491,0.46584434]
[1770782160125,0.79187662,83.529,83.491,0.46584434]
[1770782160426,0.79187662,83.529,83.49,15.28750427]
[1770782160427,0.79187662,83.529,83.501,0.46584434]
[1770782160631,0.79187662,83.549,83.511,0.46631894]
[1770782161128,0.79187662,83.549,83.522,11.97289336]
[1770782161313,0.79187662,83.549,83.523,0.46631894]
[1770782161508,0.79187662,83.556,83.523,0.46631894]
[1770782162311,0.79187662,83.556,83.525,0.46679703]
[1770782162826,0.79187662,83.554,83.522,0.46726928]
[1770782163821,0.79187662,83.588,83.541,0.46773598]
[1770782164021,0.79187662,83.579,83.541,0.46773598]
[1770782164411,0.79187662,83.579,83.55,3.31002194]
[1770782164614,0.79187662,83.577,83.55,3.31002194]
[1770782165717,0.79187662,83.577,83.542,11.97002705]
[1770782165913,0.79187662,83.577,83.55,3.31002194]
[1770782166232,0.79187662,83.577,83.542,11.97002705]
[1770782166233,3.31002194,83.57,83.542,12.43867515]
[1770782166418,0.79187662,83.569,83.542,12.43867515]
[1770782166913,0.79187662,83.569,83.534,11.97112969]
[1770782167745,0.79187662,83.569,83.529,0.46954329]
[1770782167746,0.79187662,83.587,83.551,0.46954329]
[1770782168115,0.79187662,83.587,83.55,3.31002194]
[1770782168928,0.79187662,83.578,83.55,3.30469947]
[1770782170530,0.79187662,83.576,83.55,3.30469947]
[1770782170736,0.79187662,83.589,83.56,3.77555653]
[1770782170931,0.79187662,83.589,83.554,0.47085706]
[1770782171232,0.79187662,83.589,83.55,3.30469947]
[1770782171443,0.79187662,83.579,83.55,15.27350523]
[1770782171924,0.79187662,83.579,83.543,11.96975895]
[1770782174445,0.79187662,83.577,83.543,12.44227288]
[1770782175729,0.79187662,83.577,83.544,0.47293099]
[1770782175929,0.79187662,83.577,83.54,3.30469947]
[1770782176227,0.79187662,83.577,83.541,11.97017033]
[1770782176534,0.79187662,83.569,83.534,12.44439684]
[1770782177342,0.79187662,83.569,83.535,0.47333258]
[1770782177642,0.79187662,83.567,83.535,0.47333258]
[1770782178141,0.79187662,83.567,83.445,6.24706729]
[1770782178348,0.04553508,83.519,83.475,0.79465311]
[1770782178532,0.04553508,83.499,83.464,0.79465311]
[1770782179061,0.04553508,83.499,83.43,0.1]
[1770782179062,0.04553508,83.489,83.455,0.79465311]
[1770782179750,0.04801232,83.488,83.455,0.79465311]
[1770782181029,3.30469947,83.46,83.439,11.98473783]
[1770782181236,0.05288575,83.459,83.43,12.08608533]
[1770782181431,3.30469947,83.45,83.43,12.08608533]
[1770782181632,3.30469947,83.45,83.431,0.79822442]
[1770782183845,0.74754936,83.474,83.434,0.77073335]
[1770782184044,47.86299534,83.572,83.451,0.77073335]
[1770782184045,27.86469947,83.49,83.451,0.77073335]
[1770782184244,3.30469947,83.49,83.451,0.77073335]
[1770782184550,0.74754936,83.497,83.451,0.77073335]
[1770782184551,3.30469947,83.48,83.451,0.77073335]
[1770782185049,4.05224883,83.49,83.451,0.77073335]
[1770782185433,3.30469947,83.49,83.451,0.77073335]
[1770782185632,0.74754936,83.489,83.451,0.77073335]
[1770782186241,3.30469947,83.49,83.453,0.77073335]
[1770782186544,45.44,83.497,83.461,0.77073335]
[1770782186746,0.74754936,83.479,83.453,0.77073335]
[1770782186954,41.91817571,83.496,83.438,35.84]
[1770782186955,0.74754936,83.487,83.46,3.30469947]
[1770782187133,0.74754936,83.494,83.461,0.77073335]
[1770782187335,11.97662163,83.496,83.461,0.77073335]
[1770782188029,3.30469947,83.49,83.461,0.77073335]
[1770782188353,0.74754936,83.489,83.463,0.77073335]
[1770782188554,3.30469947,83.48,83.463,0.77073335]
[1770782188933,0.74754936,83.489,83.463,0.77073335]
[1770782189545,0.74754936,83.479,83.441,0.77073335]
[1770782190573,0.74754936,83.459,83.433,0.77073335]
[1770782192137,0.74754936,83.459,83.43,0.1]
[1770782192138,9.86391877,83.48,83.451,0.77073335]
[1770782192339,9.86391877,83.49,83.451,0.77073335]
[1770782192958,0.74754936,83.489,83.451,0.77073335]
[1770782193131,9.86391877,83.48,83.451,0.77073335]
[1770782194544,0.74754936,83.489,83.453,0.77073335]
[1770782194954,9.86391877,83.51,83.471,0.77073335]
[1770782195160,0.74754936,83.509,83.471,0.77073335]
[1770782195540,0.74754936,83.499,83.471,0.77073335]
[1770782196356,0.74754936,83.507,83.471,0.77073335]
[1770782196551,12.72270452,83.507,83.473,0.77073335]
[1770782197135,0.74754936,83.499,83.473,0.77073335]
[1770782197864,11.97515516,83.507,83.473,0.77073335]
[1770782198344,0.74754936,83.506,83.473,0.77073335]
[1770782198545,9.86391877,83.5,83.473,0.77073335]
[1770782199051,9.86391877,83.5,83.474,11.97977813]
[1770782199262,0.74754936,83.506,83.475,0.77073335]
[1770782199559,0.74754936,83.509,83.475,0.77073335]
[1770782200656,9.86391877,83.5,83.475,0.77073335]
[1770782200861,10.61146813,83.5,83.475,0.77073335]
[1770782205865,0.74754936,83.499,83.475,0.77073335]
[1770782210480,0.79910759,83.505,83.475,0.77073335]
[1770782210765,0.79910759,83.517,83.477,0.78464122]
[1770782212161,0.79910759,83.517,83.481,0.78464122]
[1770782212555,0.79910759,83.517,83.483,0.78464122]
[1770782214071,11.97375353,83.516,83.483,0.78464122]
[1770782214271,0.79910759,83.515,83.483,0.78464122]
[1770782215870,0.79910759,83.515,83.485,0.78464122]
[1770782216856,3.31017935,83.5,83.471,0.78464122]
[1770782217181,0.79910759,83.509,83.481,0.78464122]
[1770782218064,0.79910759,83.509,83.484,11.97834315]
[1770782218679,0.79910759,83.509,83.485,0.78464122]
[1770782221777,0.79910759,83.509,83.475,29.94906875]
[1770782222880,0.79910759,83.509,83.476,0.78464122]
[1770782223580,0.79910759,83.507,83.476,0.78464122]
[1770782224867,0.79910759,83.507,83.478,0.78464122]
[1770782227587,0.79910759,83.507,83.47,3.31017935]
[1770782227588,0.79910759,83.507,83.48,0.78464122]
[1770782229264,0.79910759,83.507,83.482,0.78464122]
[1770782230980,0.79910759,83.505,83.474,0.78464122]
[1770782231366,0.79910759,83.503,83.474,0.78464122]
[1770782232262,0.79910759,83.499,83.474,0.78464122]
[1770782233367,0.79910759,83.497,83.465,30.7371411]
[1770782233567,0.79910759,83.497,83.434,5.13032502]
[1770782233568,0.79910759,83.489,83.461,11.98164412]
[1770782233977,0.79910759,83.489,83.462,0.78464122]
[1770782236286,0.79910759,83.487,83.461,11.98164412]
[1770782236587,0.79910759,83.487,83.459,11.98187007]
[1770782236789,0.79910759,83.487,83.462,11.98135836]
[1770782238080,0.79910759,83.487,83.462,0.78464122]
[1770782240171,0.79910759,83.487,83.463,0.84979647]
[1770782243604,0.83651495,83.479,83.447,0.84979647]
[1770782243779,0.88717402,83.459,83.431,0.81516443]
[1770782245697,0.88717402,83.459,83.43,12.08597098]
[1770782245698,0.88717402,83.459,83.433,0.81516443]
[1770782246798,45.44,83.464,83.435,0.81516443]
[1770782246980,45.44,83.464,83.434,11.98552149]
[1770782246981,11.98011515,83.472,83.45,3.31055191]
[1770782247180,11.98011515,83.472,83.451,0.81516443]
[1770782248682,3.31055191,83.47,83.451,0.81516443]
[1770782249285,4.19772593,83.47,83.451,0.81516443]
[1770782249597,0.88717402,83.469,83.451,0.81516443]
[1770782251698,11.98011515,83.472,83.451,0.81516443]
[1770782254284,0.88717402,83.469,83.431,0.81516443]
[1770782254478,0.88717402,83.469,83.439,11.98466174]
[1770782254690,0.88717402,83.469,83.44,0.81516443]
[1770782255096,0.88717402,83.469,83.442,0.81516443]
[1770782255505,0.88717402,83.467,83.442,0.81516443]
[1770782256683,3.31055191,83.47,83.442,0.81516443]
[1770782258707,3.31055191,83.47,83.444,0.81516443]
[1770782258998,11.98009011,83.472,83.444,0.81516443]
[1770782259406,3.31055191,83.47,83.444,0.81516443]
[1770782261289,11.98009011,83.472,83.444,0.81516443]
[1770782261493,0.88717402,83.472,83.444,0.81516443]